bitfinex/quotes_BTCUSD_20250602
["timestamp","ask_amount","ask_price","bid_price","bid_amount"]
[1748827813287,0.18287775,105510.0,105500.0,0.25552574]
[1748827813510,0.18287775,105510.0,105500.0,0.22887748]
[1748827813724,0.23287775,105510.0,105500.0,0.25248672]
[1748827813955,0.23287775,105510.0,105500.0,0.25248669]
[1748827814161,0.23287775,105510.0,105500.0,0.25248667]
[1748827814364,0.23287775,105510.0,105500.0,0.2524867]
[1748827814577,0.42243324,105510.0,105500.0,0.2524867]
[1748827814995,0.42243324,105510.0,105500.0,0.26196519]
[1748827815203,0.42243324,105510.0,105500.0,0.23472546]
[1748827815412,0.42243324,105510.0,105500.0,0.25248632]
[1748827815613,0.42243324,105510.0,105500.0,0.26196147]
[1748827815832,0.37243324,105510.0,105500.0,0.26196144]
[1748827816275,0.17340007,105510.0,105500.0,0.24480175]
[1748827816488,0.19235534,105510.0,105500.0,0.23532335]
[1748827816695,0.19235534,105510.0,105500.0,0.22584486]
[1748827816888,0.37243378,105510.0,105500.0,0.22524543]
[1748827817091,0.1828782,105510.0,105500.0,0.22584477]
[1748827817421,0.1828782,105510.0,105500.0,0.24360308]
[1748827817634,0.1828782,105510.0,105500.0,0.26196064]
[1748827817838,0.1828782,105510.0,105500.0,0.25308148]
[1748827818168,0.1828782,105510.0,105500.0,0.24360308]
[1748827818370,0.1828782,105510.0,105500.0,0.25308148]
[1748827818758,0.1828782,105510.0,105500.0,0.26196063]
[1748827818971,0.1828782,105510.0,105500.0,0.25308148]
[1748827819855,0.1828782,105510.0,105500.0,0.25248206]
[1748827820057,0.1828782,105510.0,105500.0,0.24360317]
[1748827820191,0.17340052,105510.0,105500.0,0.25308166]
[1748827820404,0.1828782,105510.0,105500.0,0.26256006]
[1748827820601,0.1828782,105510.0,105500.0,0.28919671]
[1748827820825,0.17340052,105510.0,105500.0,0.28091725]
[1748827821005,0.17340052,105510.0,105500.0,0.28031782]
[1748827821213,0.1828782,105510.0,105500.0,0.27143892]
[1748827821418,0.1828782,105510.0,105500.0,0.26256006]
[1748827821878,0.1828782,105510.0,105500.0,0.23412459]
[1748827822207,0.1828782,105510.0,105500.0,0.25308157]
[1748827822640,0.1828782,105510.0,105500.0,0.24360317]
[1748827822844,4.51671644,105510.0,105500.0,0.03507247]
[1748827823226,0.01454085,105470.0,105460.0,0.24420333]
[1748827823406,0.10766085,105470.0,105460.0,0.25312214]
[1748827823844,0.13610358,105470.0,105460.0,0.25312221]
[1748827824010,0.13610358,105470.0,105460.0,0.26200303]
[1748827824203,0.1266224,105470.0,105460.0,0.25312221]
[1748827824405,0.13610358,105470.0,105460.0,0.25312221]
[1748827824606,0.13610358,105470.0,105460.0,0.25308858]
[1748827824765,0.13610358,105470.0,105460.0,0.25612221]
[1748827825381,0.13610358,105470.0,105460.0,0.25912221]
[1748827825592,0.13610358,105470.0,105460.0,0.26800271]
[1748827826278,0.14582202,105470.0,105460.0,0.26800271]
[1748827826480,0.14582202,105470.0,105460.0,0.25208423]
[1748827826901,0.14582202,105470.0,105460.0,0.24322221]
[1748827827313,0.13634084,105470.0,105460.0,0.24322221]
[1748827827519,0.14582193,105470.0,105460.0,0.24904944]
[1748827827729,0.14582193,105470.0,105460.0,0.24018858]
[1748827827933,0.13634084,105470.0,105460.0,0.24018858]
[1748827828555,0.14582166,105470.0,105460.0,0.25598858]
[1748827829505,0.14582166,105470.0,105460.0,0.26484824]
[1748827829713,0.12685993,105470.0,105460.0,0.26484824]
[1748827829918,0.13634075,105470.0,105460.0,0.26484819]
[1748827830246,0.13634075,105470.0,105460.0,0.26484821]
[1748827830456,0.14582175,105470.0,105460.0,0.26484821]
[1748827830791,0.13634075,105470.0,105460.0,0.25598858]
[1748827830991,0.13634075,105470.0,105460.0,0.26484681]
[1748827831221,0.13634075,105470.0,105460.0,0.26484682]
[1748827831428,0.13634075,105470.0,105460.0,0.26483861]
[1748827831635,0.13634075,105470.0,105460.0,0.26483859]
[1748827831812,0.14582166,105470.0,105460.0,0.26483859]
[1748827832012,0.12662231,105470.0,105460.0,0.26483859]
[1748827832214,0.12662231,105470.0,105460.0,0.26483862]
[1748827832455,0.12662231,105470.0,105460.0,0.26483438]
[1748827832705,0.13610331,105470.0,105460.0,0.25598858]
[1748827832882,0.13610331,105470.0,105460.0,0.26483436]
[1748827833031,0.13610331,105470.0,105460.0,0.26483435]
[1748827833032,0.13662231,105470.0,105460.0,0.26483435]
[1748827833236,0.14610322,105470.0,105460.0,0.26483435]
[1748827833500,0.14610322,105470.0,105460.0,0.26483436]
[1748827833651,0.14610322,105470.0,105460.0,0.25598858]
[1748827833867,0.14610322,105470.0,105460.0,0.26483436]
[1748827834279,0.17465903,105470.0,105460.0,0.22345291]
[1748827834487,0.17465885,105470.0,105460.0,0.22345291]
[1748827834685,0.17465885,105470.0,105460.0,0.21460713]
[1748827835477,0.17465885,105470.0,105460.0,0.22344994]
[1748827835681,0.17465885,105470.0,105460.0,0.21460713]
[1748827835857,0.17465939,105470.0,105460.0,0.21460713]
[1748827836091,0.16517821,105470.0,105460.0,0.21460713]
[1748827836497,0.19035939,105470.0,105460.0,0.21460713]
[1748827836701,0.20545939,105470.0,105460.0,0.21460713]
[1748827837105,0.17465939,105470.0,105460.0,0.21460713]
[1748827838777,0.19105939,105470.0,105460.0,0.22344915]
[1748827838978,0.19105939,105470.0,105460.0,0.21460713]
[1748827839391,0.4697368,105470.0,105460.0,0.00604851]
[1748827839595,0.37266994,105470.0,105460.0,0.20517604]
[1748827839794,0.37266994,105470.0,105460.0,0.21401864]
[1748827839996,0.36318867,105470.0,105460.0,0.20453647]
[1748827840114,0.36318867,105470.0,105460.0,0.01489111]
[1748827840328,0.79569989,105470.0,105460.0,0.00604851]
[1748827840546,0.96779913,105470.0,105460.0,0.00604851]
[1748827840753,5.03972213,105470.0,105460.0,0.00604851]
[1748827840950,5.03972213,105470.0,105420.0,0.2149263]
[1748827840951,0.22320964,105430.0,105420.0,0.01887757]
[1748827841171,0.31632955,105430.0,105420.0,0.21504609]
[1748827841446,0.11714545,105430.0,105420.0,0.22437874]
[1748827841747,0.10766085,105430.0,105420.0,0.27578743]
[1748827842094,0.10766085,105430.0,105420.0,0.27678743]
[1748827842301,0.01454085,105430.0,105420.0,0.27678743]
[1748827842708,0.01454085,105430.0,105420.0,0.37264173]
[1748827842907,0.01454085,105430.0,105420.0,0.38149403]
[1748827843315,0.03350924,105430.0,105420.0,0.2876397]
[1748827843513,0.03350924,105430.0,105420.0,0.28763969]
[1748827843717,0.04299366,105430.0,105420.0,0.28764571]
[1748827843987,0.26766263,105430.0,105420.0,0.2375022]
[1748827844190,0.24869424,105430.0,105420.0,0.23750238]
[1748827844679,0.24869424,105430.0,105420.0,0.23750229]
[1748827844810,0.23269424,105430.0,105420.0,0.24636148]
[1748827845014,0.23269424,105430.0,105420.0,0.23750229]
[1748827845251,0.23269424,105430.0,105420.0,0.24698779]
[1748827845455,0.23269424,105430.0,105420.0,0.2564732]
[1748827846143,0.04299492,105430.0,105420.0,0.25647257]
[1748827846291,0.03350996,105430.0,105420.0,0.25647257]
[1748827846518,0.04299393,105430.0,105420.0,0.25647257]
[1748827846722,0.05247871,105430.0,105420.0,0.27167257]
[1748827847174,0.04299375,105430.0,105420.0,0.28777257]
[1748827847458,0.04299375,105430.0,105420.0,0.29662426]
[1748827847655,0.04299375,105430.0,105420.0,0.28777257]
[1748827847875,0.03350924,105430.0,105420.0,0.29662439]
[1748827848079,0.04299366,105430.0,105420.0,0.29662439]
[1748827848279,0.05247817,105430.0,105420.0,0.29662439]
[1748827848488,0.01454085,105430.0,105420.0,0.29662398]
[1748827849152,0.01454085,105430.0,105420.0,0.58753257]
[1748827849355,0.01454085,105430.0,105420.0,0.59638391]
[1748827849769,0.01454085,105430.0,105420.0,0.69223308]
[1748827849983,0.02402518,105430.0,105420.0,0.39550767]
[1748827850197,0.01454085,105430.0,105420.0,0.69526734]
[1748827850398,0.01454085,105430.0,105420.0,0.69526742]
[1748827850607,0.01454085,105430.0,105420.0,0.69526723]
[1748827850805,0.01454085,105430.0,105420.0,0.68642146]
[1748827851106,0.01454085,105430.0,105420.0,0.704113]
[1748827851561,0.01454085,105430.0,105420.0,0.71295877]
[1748827851763,0.024025,105430.0,105420.0,0.704113]
[1748827851966,0.01454085,105430.0,105420.0,0.70411297]
[1748827852468,0.02402518,105430.0,105420.0,0.70411297]
[1748827852597,0.01454085,105430.0,105420.0,0.70411297]
[1748827852791,0.01454085,105430.0,105420.0,0.71295877]
[1748827853004,0.02402509,105430.0,105420.0,0.70411297]
[1748827853201,0.02402509,105430.0,105420.0,0.71295877]
[1748827853407,0.01454085,105430.0,105420.0,0.71295877]
[1748827853607,0.02402509,105430.0,105420.0,0.30849868]
[1748827853811,0.03350951,105430.0,105420.0,0.58560452]
[1748827854020,0.04299411,105430.0,105420.0,0.57671868]
[1748827854429,0.03350951,105430.0,105420.0,0.58556454]
[1748827854866,0.04299402,105430.0,105420.0,0.28604454]
[1748827855445,0.0524788,105430.0,105420.0,0.27719868]
[1748827855848,0.04299402,105430.0,105420.0,0.27719868]
[1748827856070,0.0524788,105430.0,105420.0,0.27719868]
[1748827856678,0.0524788,105430.0,105420.0,0.26467888]
[1748827856881,0.23269442,105430.0,105420.0,0.23622238]
[1748827857016,0.24769442,105430.0,105420.0,0.24570797]
[1748827857219,0.24442513,105430.0,105420.0,0.03701929]
[1748827857422,0.24442513,105430.0,105420.0,0.23622229]
[1748827857623,0.24442513,105430.0,105420.0,0.24570779]
[1748827857872,0.26390982,105430.0,105420.0,0.25455393]
[1748827858278,0.23320982,105430.0,105420.0,0.25455113]
[1748827858611,0.23320982,105430.0,105420.0,0.24570788]
[1748827859239,0.22372513,105430.0,105420.0,0.03701929]
[1748827859442,0.24614017,105430.0,105420.0,0.03701929]
[1748827859855,0.25106071,105430.0,105420.0,0.03701929]
[1748827860256,0.25106071,105430.0,105420.0,0.04586295]
[1748827860824,0.25106071,105430.0,105420.0,0.03701929]
[1748827861027,0.25106071,105430.0,105420.0,0.04650515]
[1748827861241,0.25106071,105430.0,105420.0,0.24330824]
[1748827861455,0.25106071,105430.0,105420.0,0.23382247]
[1748827861663,0.25106071,105430.0,105420.0,0.2426662]
[1748827861873,0.25106071,105430.0,105420.0,0.25215222]
[1748827862086,0.22864558,105430.0,105420.0,0.25279374]
[1748827862306,0.23813018,105430.0,105420.0,0.26163741]
[1748827862532,0.23813018,105430.0,105420.0,0.26163956]
[1748827862740,0.23813018,105430.0,105420.0,0.26163965]
[1748827863090,0.23813018,105430.0,105420.0,0.27112515]
[1748827863295,0.23813018,105430.0,105420.0,0.26163965]
[1748827863497,0.23813018,105430.0,105420.0,0.25279383]
[1748827863699,0.23813018,105430.0,105420.0,0.26163985]
[1748827864084,0.23813018,105430.0,105420.0,0.25279383]
[1748827864482,0.23813018,105430.0,105420.0,0.2616479]
[1748827864856,0.23813018,105430.0,105420.0,0.25279383]
[1748827865944,0.23813018,105430.0,105420.0,0.25582866]
[1748827866728,0.23813018,105430.0,105420.0,0.26468263]
[1748827866928,0.23813018,105430.0,105420.0,0.25582866]
[1748827867344,0.23813018,105430.0,105420.0,0.24634307]
[1748827867756,0.24761514,105430.0,105420.0,0.26531416]
[1748827867958,0.24761514,105430.0,105420.0,0.25582875]
[1748827868376,0.24761514,105430.0,105420.0,0.26468272]
[1748827868576,0.24761514,105430.0,105420.0,0.27416831]
[1748827868786,0.04843086,105430.0,105420.0,0.2836531]
[1748827868965,0.04843086,105430.0,105420.0,0.28365293]
[1748827869165,0.04843086,105430.0,105420.0,0.27479921]
[1748827869924,0.02946139,105430.0,105420.0,0.30579921]
[1748827870133,0.03894554,105430.0,105420.0,0.30579921]
[1748827870624,0.05791429,105430.0,105420.0,0.30579921]
[1748827871208,0.03894554,105430.0,105420.0,0.31467795]
[1748827871422,0.04842987,105430.0,105420.0,0.30579921]
[1748827871864,0.04842987,105430.0,105420.0,0.31467794]
[1748827872064,0.04842987,105430.0,105420.0,0.30579921]
[1748827872303,0.04842987,105430.0,105420.0,0.30579908]
[1748827872922,0.04842987,105430.0,105420.0,0.31467781]
[1748827873112,0.04842987,105430.0,105420.0,0.30579908]
[1748827873521,0.02946139,105430.0,105420.0,0.31467781]
[1748827874059,0.02946139,105430.0,105420.0,0.31467929]
[1748827874307,0.02946139,105430.0,105420.0,0.70985359]
[1748827874550,0.02946139,105430.0,105420.0,0.70097338]
[1748827874936,0.02946139,105430.0,105420.0,0.70461939]
[1748827875168,0.04842996,105430.0,105420.0,0.27844509]
[1748827875590,0.05791438,105430.0,105420.0,0.29464509]
[1748827875769,0.04842987,105430.0,105420.0,0.29464509]
[1748827876355,0.24761361,105430.0,105420.0,0.30025986]
[1748827876568,0.07688376,105430.0,105420.0,0.28732476]
[1748827876802,0.08269889,105430.0,105420.0,0.27844473]
[1748827877021,0.09218367,105430.0,105420.0,0.27844473]
[1748827877440,0.09218367,105430.0,105420.0,0.28732479]
[1748827877644,0.27239938,105430.0,105420.0,0.26835314]
[1748827877867,0.28188434,105430.0,105420.0,0.27419236]
[1748827878034,0.28188434,105430.0,105420.0,0.2836779]
[1748827878366,0.09218502,105430.0,105420.0,0.28367749]
[1748827878835,0.07321519,105430.0,105420.0,0.28367749]
[1748827879056,0.08270006,105430.0,105420.0,0.27479827]
[1748827879315,0.26873036,105430.0,105420.0,0.23625178]
[1748827879519,0.26873036,105430.0,105420.0,0.24634276]
[1748827879664,0.26873036,105430.0,105420.0,0.25582835]
[1748827879868,0.26873036,105430.0,105420.0,0.26470783]
[1748827880061,0.26873036,105430.0,105420.0,0.26470788]
[1748827880461,0.25924558,105430.0,105420.0,0.26470788]
[1748827880862,0.25924558,105430.0,105420.0,0.25582853]
[1748827881061,0.24976071,105430.0,105420.0,0.25522922]
[1748827881319,0.24976071,105430.0,105420.0,0.24634294]
[1748827882413,0.24976071,105430.0,105420.0,0.24574365]
[1748827882637,0.24976071,105430.0,105420.0,0.23685726]
[1748827882864,0.24976071,105430.0,105420.0,0.25522945]
[1748827883360,0.24976071,105430.0,105420.0,0.24634303]
[1748827883835,0.24976071,105430.0,105420.0,0.25522945]
[1748827884076,0.24976071,105430.0,105420.0,0.25582871]
[1748827884300,0.24976071,105430.0,105420.0,0.25279392]
[1748827884519,0.24976071,105430.0,105420.0,0.25582876]
[1748827884996,0.25924549,105430.0,105420.0,0.27479967]
[1748827885236,0.25924549,105430.0,105420.0,0.28368591]
[1748827885625,0.25924549,105430.0,105420.0,0.28065107]
[1748827885859,0.05791564,105430.0,105420.0,0.28368619]
[1748827886064,0.04843014,105430.0,105420.0,0.28368556]
[1748827886274,0.04843014,105430.0,105420.0,0.28368555]
[1748827886480,0.06739952,105430.0,105420.0,0.29257218]
[1748827886639,0.05791474,105430.0,105420.0,0.29257217]
[1748827886841,0.06739952,105430.0,105420.0,0.29257217]
[1748827887098,0.04843014,105430.0,105420.0,0.32377217]
[1748827887307,0.04843005,105430.0,105420.0,0.32377217]
[1748827887518,0.04842987,105430.0,105420.0,0.32377253]
[1748827887956,0.05791438,105430.0,105420.0,0.32377253]
[1748827888185,0.05791438,105430.0,105420.0,0.31488555]
[1748827888400,0.05791438,105430.0,105420.0,0.32377444]
[1748827889234,0.02946139,105430.0,105420.0,0.32377464]
[1748827889480,0.03894572,105430.0,105420.0,0.31488555]
[1748827889679,0.03944172,105430.0,105420.0,0.32377462]
[1748827889904,0.03944172,105430.0,105420.0,0.3237746]
[1748827890353,0.02995739,105430.0,105420.0,0.3237746]
[1748827890807,0.03944154,105430.0,105420.0,0.3237746]
[1748827891018,0.04892596,105430.0,105420.0,0.3237746]
[1748827891221,0.03944154,105430.0,105420.0,0.3237746]
[1748827891407,0.03944154,105430.0,105420.0,0.32377455]
[1748827891631,0.04892596,105430.0,105420.0,0.31488555]
[1748827891846,0.02995739,105430.0,105420.0,0.32377455]
[1748827891999,0.02995739,105430.0,105420.0,0.42327635]
[1748827892223,0.02995739,105430.0,105420.0,0.41438735]
[1748827892962,0.02995739,105430.0,105420.0,0.41438712]
[1748827894267,0.02995739,105430.0,105420.0,0.41438684]
[1748827895009,0.02946139,105430.0,105420.0,0.41438684]
[1748827896697,0.02946139,105430.0,105420.0,0.41438648]
[1748827896903,0.02946139,105430.0,105420.0,0.3920678]
[1748827896904,0.03894554,105430.0,105420.0,0.3920678]
[1748827897130,0.04842987,105430.0,105420.0,0.2962135]
[1748827897329,0.04842987,105430.0,105420.0,0.28368535]
[1748827897530,0.07391438,105430.0,105420.0,0.29256681]
[1748827897733,0.08339898,105430.0,105420.0,0.29256681]
[1748827897935,0.05791438,105430.0,105420.0,0.29256681]
[1748827898133,0.04842987,105430.0,105420.0,0.29256681]
[1748827898344,0.05791438,105430.0,105420.0,0.29256716]
[1748827898555,0.05791438,105430.0,105420.0,0.29256729]
[1748827899106,1.05688296,105430.0,105420.0,0.05542238]
[1748827899306,0.98461494,105430.0,105420.0,0.05542331]
[1748827899635,0.90837,105430.0,105420.0,0.26411186]
[1748827899975,0.90837,105430.0,105420.0,0.25522954]
[1748827900176,0.90837,105430.0,105420.0,0.26411224]
[1748827900306,0.98017442,105430.0,105420.0,0.27359774]
[1748827900512,0.98017442,105430.0,105420.0,0.28308057]
[1748827900513,0.79995979,105430.0,105420.0,0.28308057]
[1748827900733,0.78099014,105430.0,105420.0,0.28308057]
[1748827900939,0.79047474,105430.0,105420.0,0.28308057]
[1748827901146,0.77150563,105430.0,105420.0,0.27420013]
[1748827901315,0.79047447,105430.0,105420.0,0.2830802]
[1748827901516,0.78098996,105430.0,105420.0,0.28308011]
[1748827901776,0.12366139,105430.0,105420.0,0.31598011]
[1748827901978,0.13314554,105430.0,105420.0,0.31598011]
[1748827902877,0.13314554,105430.0,105420.0,0.31598004]
[1748827903097,0.13314554,105430.0,105420.0,0.31598005]
[1748827903301,0.14262987,105430.0,105420.0,0.31598005]
[1748827903514,0.14262987,105430.0,105420.0,0.30709989]
[1748827903709,0.14262987,105430.0,105420.0,0.31597975]
[1748827904130,0.14262978,105430.0,105420.0,0.31597975]
[1748827904325,0.14262978,105430.0,105420.0,0.30709989]
[1748827904539,0.12366139,105430.0,105420.0,0.3109801]
[1748827904749,0.12366139,105430.0,105420.0,0.30209989]
[1748827904951,0.12366139,105430.0,105420.0,0.3109801]
[1748827905154,0.12366139,105430.0,105420.0,0.31098041]
[1748827905359,0.12366139,105430.0,105420.0,0.30209989]
[1748827905564,0.12366139,105430.0,105420.0,0.31098041]
[1748827906374,0.12366139,105430.0,105420.0,0.31098069]
[1748827906579,0.12366139,105430.0,105420.0,0.30209989]
[1748827906722,0.12366139,105430.0,105420.0,0.31098069]
[1748827906921,0.12366139,105430.0,105420.0,0.31098095]
[1748827907374,0.12366139,105430.0,105420.0,0.31098096]
[1748827908167,0.12366139,105430.0,105420.0,0.3109812]
[1748827908366,0.12366139,105430.0,105420.0,0.31098104]
[1748827908783,0.12366139,105430.0,105420.0,0.3020999]
[1748827909564,0.12366139,105430.0,105420.0,0.31098102]
[1748827909772,0.12366139,105430.0,105420.0,0.3020999]
[1748827910238,0.12366139,105430.0,105420.0,0.31098103]
[1748827910542,0.12366139,105430.0,105420.0,0.3020999]
[1748827910767,0.12366139,105430.0,105420.0,0.31098103]
[1748827910950,0.12366139,105430.0,105420.0,0.3020999]
[1748827911352,0.02946139,105430.0,105420.0,0.3020999]
[1748827911577,0.02946139,105430.0,105420.0,0.30876074]
[1748827911860,0.02946139,105430.0,105420.0,0.3020999]
[1748827912059,0.02946139,105430.0,105420.0,0.31764186]
[1748827912222,0.02946139,105430.0,105420.0,0.31764205]
[1748827912434,0.02946139,105430.0,105420.0,0.30209989]
[1748827912633,0.02946139,105430.0,105420.0,0.3176423]
[1748827913218,0.02946139,105430.0,105420.0,0.31764229]
[1748827914013,0.02946139,105430.0,105420.0,0.30876109]
[1748827914243,0.02946139,105430.0,105420.0,0.31764269]
[1748827914650,0.02946139,105430.0,105420.0,0.3176429]
[1748827914827,0.02946139,105430.0,105420.0,0.3109817]
[1748827915085,0.02946139,105430.0,105420.0,0.31764306]
[1748827915701,0.02946139,105430.0,105420.0,0.31764297]
[1748827916002,0.02946139,105430.0,105420.0,0.31764334]
[1748827916415,0.02946139,105430.0,105420.0,0.31764333]
[1748827916815,0.02946139,105430.0,105420.0,0.31764348]
[1748827917119,0.02946139,105430.0,105420.0,0.31764368]
[1748827917469,0.02946139,105430.0,105420.0,0.31764365]
[1748827917641,0.02946139,105430.0,105420.0,0.31764371]
[1748827918052,0.02946139,105430.0,105420.0,0.31764373]
[1748827918377,0.02946139,105430.0,105420.0,0.31764389]
[1748827918508,0.02946139,105430.0,105420.0,0.30134389]
[1748827918921,0.02946139,105430.0,105420.0,0.30134404]
[1748827919565,0.02946139,105430.0,105420.0,0.28579988]
[1748827919772,0.02946139,105430.0,105420.0,0.30134404]
[1748827920172,0.02946139,105430.0,105420.0,0.2924618]
[1748827920437,0.02946139,105430.0,105420.0,0.30134436]
[1748827920639,0.02946139,105430.0,105420.0,0.29830964]
[1748827920838,0.02946139,105430.0,105420.0,0.30134431]
[1748827921166,0.02946139,105430.0,105420.0,0.30134425]
[1748827921676,0.02946139,105430.0,105420.0,0.29468239]
[1748827921812,0.02946139,105430.0,105420.0,0.30134425]
[1748827922178,0.02946139,105430.0,105420.0,0.28579991]
[1748827922507,0.02946139,105430.0,105420.0,0.30134391]
[1748827922704,0.02946139,105430.0,105420.0,0.30084825]
[1748827923133,0.02946139,105430.0,105420.0,0.31704825]
[1748827923345,0.02946139,105430.0,105420.0,0.31704835]
[1748827923547,0.02946139,105430.0,105420.0,0.31401368]
[1748827923775,0.02946139,105430.0,105420.0,0.31704867]
[1748827924205,0.02946139,105430.0,105420.0,0.31704902]
[1748827924837,0.02946139,105430.0,105420.0,0.30150391]
[1748827925049,0.02946139,105430.0,105420.0,0.31704979]
[1748827925253,0.02946139,105430.0,105420.0,0.31038727]
[1748827925459,0.02946139,105430.0,105420.0,0.31705008]
[1748827925874,0.02946139,105430.0,105420.0,0.31705034]
[1748827926294,0.02946139,105430.0,105420.0,0.31403475]
[1748827926495,0.02946139,105430.0,105420.0,0.30515088]
[1748827926704,0.02946139,105430.0,105420.0,0.31403521]
[1748827926908,0.02946139,105430.0,105420.0,0.32069845]
[1748827927116,0.02946139,105430.0,105420.0,0.32069856]
[1748827927635,0.02946139,105430.0,105420.0,0.3206987]
[1748827928181,0.02946139,105430.0,105420.0,0.32069847]
[1748827928636,0.02946139,105430.0,105420.0,0.32069872]
[1748827929681,0.02946139,105430.0,105420.0,0.30515088]
[1748827929884,0.02946139,105430.0,105420.0,0.32069893]
[1748827930296,0.02946139,105430.0,105420.0,0.31403548]
[1748827930518,0.02946139,105430.0,105420.0,0.30515088]
[1748827930720,0.02946139,105430.0,105420.0,0.32070765]
[1748827931883,0.02946139,105430.0,105420.0,0.32070766]
[1748827932310,0.02946139,105430.0,105420.0,0.31402602]
[1748827932546,0.02946139,105430.0,105420.0,0.3207107]
[1748827932963,0.02946139,105430.0,105420.0,0.32071088]
[1748827933367,0.02946139,105430.0,105420.0,0.32071097]
[1748827933788,0.03894554,105430.0,105420.0,0.31404366]
[1748827933993,0.03894554,105430.0,105420.0,0.32071097]
[1748827934935,0.02946139,105430.0,105420.0,0.32071097]
[1748827935183,0.03894554,105430.0,105420.0,0.32071097]
[1748827935418,0.02941039,105430.0,105420.0,0.320711]
[1748827935654,0.03889454,105430.0,105420.0,0.320711]
[1748827936137,0.03889454,105430.0,105420.0,0.31182127]
[1748827936354,0.03889454,105430.0,105420.0,0.32071107]
[1748827936600,0.03889454,105430.0,105420.0,0.32071109]
[1748827936814,0.03889454,105430.0,105420.0,0.32071111]
[1748827937026,0.03889454,105430.0,105420.0,0.30451115]
[1748827937589,0.03889454,105430.0,105420.0,0.30451119]
[1748827938048,0.02941039,105430.0,105420.0,0.30451119]
[1748827938251,0.02941039,105430.0,105420.0,0.32061119]
[1748827938458,0.02941039,105430.0,105420.0,0.32061121]
[1748827938663,0.02941039,105430.0,105420.0,0.3139438]
[1748827938868,0.02941039,105430.0,105420.0,0.32061117]
[1748827939228,0.03889463,105430.0,105420.0,0.32061117]
[1748827939430,0.03889454,105430.0,105420.0,0.32061117]
[1748827939936,0.03889454,105430.0,105420.0,0.32061115]
[1748827940169,0.02941039,105430.0,105420.0,0.32061112]
[1748827940366,0.02941039,105430.0,105420.0,0.31394375]
[1748827940573,0.03889463,105430.0,105420.0,0.28791112]
[1748827940772,0.03889463,105430.0,105420.0,0.28122653]
[1748827940970,0.03889454,105430.0,105420.0,0.28791129]
[1748827941316,0.02941039,105430.0,105420.0,0.3035113]
[1748827941522,0.02941039,105430.0,105420.0,0.31911129]
[1748827941945,0.03889454,105430.0,105420.0,0.31911129]
[1748827942151,0.03889454,105430.0,105420.0,0.31911127]
[1748827942512,0.02941039,105430.0,105420.0,0.31911127]
[1748827942745,0.02941039,105430.0,105420.0,0.31911129]
[1748827943395,0.02941039,105430.0,105420.0,0.30321129]
[1748827943628,0.02941039,105430.0,105420.0,0.40527543]
[1748827943881,0.02941039,105430.0,105420.0,0.41416379]
[1748827944111,0.02941039,105430.0,105420.0,0.3986083]
[1748827944338,0.02941039,105430.0,105420.0,0.41416289]
[1748827944544,0.02941039,105430.0,105420.0,0.40527457]
[1748827944747,0.02941039,105430.0,105420.0,0.41416293]
[1748827944984,0.02941039,105430.0,105420.0,0.40749666]
[1748827945202,0.02941039,105430.0,105420.0,0.41416292]
[1748827945606,0.02941039,105430.0,105420.0,0.41416291]
[1748827945937,0.02941039,105430.0,105420.0,0.41416241]
[1748827946980,0.02941039,105430.0,105420.0,0.41416164]
[1748827948291,0.02941039,105430.0,105420.0,0.40747688]
[1748827948599,0.02941039,105430.0,105420.0,0.40527248]
[1748827948763,0.02941039,105430.0,105420.0,0.41415963]
[1748827948985,0.02941039,105430.0,105420.0,0.40527218]
[1748827949385,0.02941039,105430.0,105420.0,0.41415904]
[1748827949585,0.02941039,105430.0,105420.0,0.40527223]
[1748827949767,0.02941039,105430.0,105420.0,0.41415885]
[1748827950234,0.02941039,105430.0,105420.0,0.41415879]
[1748827950547,0.02941039,105430.0,105420.0,0.40527201]
[1748827951607,0.02941039,105430.0,105420.0,0.40527153]
[1748827952205,0.02941039,105430.0,105420.0,0.41415771]
[1748827952407,0.02941039,105430.0,105420.0,0.39860692]
[1748827952615,1.07370394,105430.0,105420.0,0.0565953]
[1748827953048,1.07370394,105430.0,105420.0,0.05356355]
[1748827953447,0.78879039,105430.0,105420.0,0.25580162]
[1748827953620,0.81724365,105430.0,105420.0,0.27477235]
[1748827953836,0.79827454,105430.0,105420.0,0.27477235]
[1748827954191,0.79827454,105430.0,105420.0,0.27476597]
[1748827954192,0.81724329,105430.0,105420.0,0.27476597]
[1748827954400,0.78879039,105430.0,105420.0,0.27376573]
[1748827954611,0.12265039,105430.0,105420.0,0.2717656]
[1748827954817,0.17351896,105430.0,105420.0,0.2717656]
[1748827955013,0.16403454,105430.0,105420.0,0.2717656]
[1748827955222,0.16303454,105430.0,105420.0,0.2717656]
[1748827955444,0.16603454,105430.0,105420.0,0.271765]
[1748827955674,0.16603454,105430.0,105420.0,0.27176471]
[1748827955869,0.16603454,105430.0,105420.0,0.27176478]
[1748827956082,0.16803454,105430.0,105420.0,0.27176478]
[1748827956274,0.15855039,105430.0,105420.0,0.27176478]
[1748827956490,0.16803454,105430.0,105420.0,0.27176474]
[1748827956895,0.16803454,105430.0,105420.0,0.27176475]
[1748827957216,0.16803454,105430.0,105420.0,0.27176446]
[1748827957819,0.15855039,105430.0,105420.0,0.27176446]
[1748827958031,0.12665039,105430.0,105420.0,0.27176446]
[1748827958169,0.12665039,105430.0,105420.0,0.30356468]
[1748827958381,0.03441039,105430.0,105420.0,0.38752029]
[1748827958590,0.03441039,105430.0,105420.0,0.39418275]
[1748827958798,0.03441039,105430.0,105420.0,0.39418097]
[1748827959453,0.03441039,105430.0,105420.0,0.38751902]
[1748827959658,0.03441039,105430.0,105420.0,0.39418067]
[1748827959863,0.03441039,105430.0,105420.0,0.69050067]
[1748827960269,0.03441039,105430.0,105420.0,0.39418067]
[1748827960430,0.03441039,105430.0,105420.0,0.40306311]
[1748827960631,0.03441039,105430.0,105420.0,0.40306334]
[1748827960934,0.03441039,105430.0,105420.0,0.40306343]
[1748827962147,0.03441039,105430.0,105420.0,0.40306337]
[1748827962557,0.03441039,105430.0,105420.0,0.40306324]
[1748827963094,0.03441039,105430.0,105420.0,0.40306327]
[1748827963299,0.03441039,105430.0,105420.0,0.40306323]
[1748827963468,0.03441039,105430.0,105420.0,0.38751905]
[1748827963671,0.03441039,105430.0,105420.0,0.40306323]
[1748827964094,0.03141039,105430.0,105420.0,0.3941808]
[1748827964290,0.02941039,105430.0,105420.0,0.40306314]
[1748827964494,0.03041039,105430.0,105420.0,0.40306314]
[1748827964734,0.03041039,105430.0,105420.0,0.69898314]
[1748827964878,0.03041039,105430.0,105420.0,0.68358314]
[1748827965083,0.03041039,105430.0,105420.0,0.66718314]
[1748827965598,0.03041039,105430.0,105420.0,0.66052139]
[1748827966049,0.03041039,105430.0,105420.0,0.66052137]
[1748827966254,0.03041039,105430.0,105420.0,0.36460137]
[1748827966528,0.03041039,105430.0,105420.0,0.35571905]
[1748827966748,0.03041039,105430.0,105420.0,0.36460123]
[1748827967153,0.03041039,105430.0,105420.0,0.36460136]
[1748827967514,0.03041039,105430.0,105420.0,0.36460116]
[1748827969146,0.03041039,105430.0,105420.0,0.38100116]
[1748827969349,0.03041039,105430.0,105420.0,0.38100101]
[1748827969873,0.03041039,105430.0,105420.0,0.38100117]
[1748827970252,0.03041039,105430.0,105420.0,0.35571897]
[1748827970452,0.03041039,105430.0,105420.0,0.39740117]